fUSD/lending_fUSD_20240117
["ID","MTS","AMOUNT","RATE_DAILY","PERIOD"]
[311922749,1705500685099,-5235.408649,0.0002824,2]
[311922750,1705500685110,-150.0,0.00028243,2]
[311922751,1705500685122,-166.87976454,0.0002828,2]
[311922752,1705500685132,-167.0,0.00028307,2]
[311922753,1705500685142,-167.0,0.00028307,2]
[311922754,1705500685153,-170.0,0.00028383,7]
[311922755,1705500685163,-150.0,0.00028383,7]
[311922756,1705500685174,-150.0,0.00028383,7]
[311922757,1705500685184,-208.0,0.00028458,6]
[311922758,1705500685193,-166.87976454,0.00028475,2]
[311922759,1705500685202,-1134.99666915,0.00028484,2]
[311922760,1705500685212,-220.0,0.000285,17]
[311922761,1705500685222,-343.0,0.000285,2]
[311922762,1705500685233,-155.892222,0.00028525,2]
[311922763,1705500685244,-150.0,0.00028544,2]
[311922764,1705500685254,-170.0,0.0002863,7]
[311922765,1705500685263,-150.0,0.0002863,7]
[311922766,1705500685273,-150.0,0.0002863,7]
[311922767,1705500685282,-150.0,0.0002866,2]
[311922768,1705500685291,-166.87976454,0.00028669,2]
[311922769,1705500685300,-150.0,0.0002873,2]
[311922770,1705500685310,-4000.0,0.00028735,2]
[311922771,1705500685319,-155.0,0.00028767,2]
[311922772,1705500685329,-750.0,0.000288,2]
[311922773,1705500685338,-257.07759916,0.00028817,2]
[311922774,1705500685347,-166.87976454,0.00028864,2]
[311922775,1705500685357,-170.0,0.00028876,7]
[311922776,1705500685367,-150.0,0.00028876,7]
[311922777,1705500685377,-150.0,0.00028876,7]
[311922778,1705500685387,-1169.07,0.00028882,2]
[311922779,1705500685397,-150.0,0.00028905,2]
[311922780,1705500685410,-150.0,0.00028917,2]
[311922781,1705500685420,-250.0,0.00029,2]
[311922782,1705500685429,-500.0,0.00029,2]
[311922783,1705500685440,-500.0,0.00029,2]
[311922784,1705500685450,-500.0,0.00029,2]
[311922785,1705500685459,-500.0,0.00029,2]
[311922786,1705500685472,-500.0,0.00029,2]
[311922787,1705500685481,-500.0,0.00029,2]
[311922788,1705500685491,-500.0,0.00029,2]
[311922789,1705500685500,-500.0,0.00029,2]
[311922790,1705500685509,-500.0,0.00029,2]
[311922791,1705500685518,-500.0,0.00029,2]
[311922792,1705500685526,-500.0,0.00029,2]
[311922793,1705500685537,-500.0,0.00029,2]
[311922794,1705500685547,-500.0,0.00029,2]
[311922795,1705500685556,-500.0,0.00029,2]
[311922796,1705500685565,-500.0,0.00029,2]
[311922797,1705500685575,-500.0,0.00029,2]
[311922798,1705500685585,-500.0,0.00029,2]
[311922799,1705500685594,-500.0,0.00029,2]
[311922800,1705500685603,-500.0,0.00029,2]
[311922801,1705500685612,-500.0,0.00029,2]
[311922802,1705500685622,-500.0,0.00029,2]
[311922803,1705500685631,-500.0,0.00029,2]
[311922804,1705500685642,-500.0,0.00029,2]
[311922805,1705500685652,-500.0,0.00029,2]
[311922806,1705500685661,-500.0,0.00029,2]
[311922807,1705500685671,-500.0,0.00029,2]
[311922808,1705500685681,-500.0,0.00029,2]
[311922809,1705500685690,-500.0,0.00029,2]
[311922810,1705500685699,-500.0,0.00029,2]
[311922811,1705500685708,-500.0,0.00029,2]
[311922812,1705500685719,-500.0,0.00029,2]
[311922813,1705500685728,-500.0,0.00029,2]
[311922814,1705500685737,-500.0,0.00029,2]
[311922815,1705500685747,-500.0,0.00029,2]
[311922816,1705500685756,-500.0,0.00029,2]
[311922817,1705500685765,-500.0,0.00029,2]
[311922818,1705500685777,-500.0,0.00029,2]
[311922819,1705500685786,-500.0,0.00029,2]
[311922820,1705500685795,-500.0,0.00029,2]
[311922821,1705500685805,-500.0,0.00029,2]
[311922822,1705500685813,-500.0,0.00029,2]
[311922823,1705500685823,-500.0,0.00029,2]
[311922824,1705500685832,-500.0,0.00029,2]
[311922825,1705500685841,-500.0,0.00029,2]
[311922826,1705500685850,-500.0,0.00029,2]
[311922827,1705500685860,-500.0,0.00029,2]
[311922828,1705500685872,-500.0,0.00029,2]
[311922829,1705500685883,-500.0,0.00029,2]
[311922830,1705500685893,-500.0,0.00029,2]
[311922831,1705500685903,-500.0,0.00029,2]
[311922832,1705500685912,-500.0,0.00029,2]
[311922833,1705500685921,-500.0,0.00029,2]
[311922834,1705500685930,-500.0,0.00029,2]
[311922835,1705500685939,-500.0,0.00029,2]
[311922836,1705500685949,-500.0,0.00029,2]
[311922837,1705500685961,-500.0,0.00029,2]
[311922838,1705500685970,-500.0,0.00029,2]
[311922839,1705500685979,-500.0,0.00029,2]
[311922840,1705500685987,-500.0,0.00029,2]
[311922841,1705500685998,-500.0,0.00029,2]
[311922842,1705500686007,-500.0,0.00029,2]
[311922843,1705500686016,-500.0,0.00029,2]
[311922844,1705500686026,-500.0,0.00029,2]
[311922845,1705500686036,-500.0,0.00029,2]
[311922846,1705500686045,-500.0,0.00029,2]
[311922847,1705500686115,-500.0,0.00029,2]
[311922848,1705500686125,-500.0,0.00029,2]
[311922849,1705500686134,-500.0,0.00029,2]
[311922850,1705500686143,-500.0,0.00029,2]
[311922851,1705500686152,-500.0,0.00029,2]
[311922852,1705500686161,-500.0,0.00029,2]
[311922853,1705500686170,-500.0,0.00029,2]
[311922854,1705500686179,-500.0,0.00029,2]
[311922855,1705500686188,-500.0,0.00029,2]
[311922856,1705500686197,-500.0,0.00029,2]
[311922857,1705500686206,-500.0,0.00029,2]
[311922858,1705500686216,-500.0,0.00029,2]
[311922859,1705500686229,-500.0,0.00029,2]
[311922860,1705500686240,-500.0,0.00029,2]
[311922861,1705500686250,-500.0,0.00029,2]
[311922862,1705500686261,-500.0,0.00029,2]
[311922863,1705500686271,-500.0,0.00029,2]
[311922864,1705500686282,-500.0,0.00029,2]
[311922865,1705500686291,-500.0,0.00029,2]
[311922866,1705500686302,-500.0,0.00029,2]
[311922867,1705500686311,-500.0,0.00029,2]
[311922868,1705500686321,-500.0,0.00029,2]
[311922869,1705500686334,-500.0,0.00029,2]
[311922870,1705500686344,-500.0,0.00029,2]
[311922871,1705500686353,-500.0,0.00029,2]
[311922872,1705500686364,-500.0,0.00029,2]
[311922873,1705500686374,-500.0,0.00029,2]
[311922874,1705500686383,-500.0,0.00029,2]
[311922875,1705500686393,-500.0,0.00029,2]
[311922876,1705500686402,-500.0,0.00029,2]
[311922877,1705500686412,-500.0,0.00029,2]
[311922878,1705500686422,-500.0,0.00029,2]
[311922879,1705500686431,-500.0,0.00029,2]
[311922880,1705500686441,-500.0,0.00029,2]
[311922881,1705500686451,-500.0,0.00029,2]
[311922882,1705500686461,-500.0,0.00029,2]
[311922883,1705500686472,-500.0,0.00029,2]
[311922884,1705500686482,-500.0,0.00029,2]
[311922885,1705500686492,-500.0,0.00029,2]
[311922886,1705500686503,-500.0,0.00029,2]
[311922887,1705500686513,-500.0,0.00029,2]
[311922888,1705500686523,-500.0,0.00029,2]
[311922889,1705500686533,-500.0,0.00029,2]
[311922890,1705500686543,-500.0,0.00029,2]
[311922891,1705500686554,-500.0,0.00029,2]
[311922892,1705500686564,-500.0,0.00029,2]
[311922893,1705500686573,-500.0,0.00029,2]
[311922894,1705500686582,-905.25261408,0.00029,2]
[311922895,1705500686592,-1885.14172653,0.00029,5]
[311922896,1705500686602,-620.51077284,0.00029,2]
[311922897,1705500686613,-2500.0,0.00029,2]
[311922898,1705500686623,-450.0,0.00029,3]
[311922899,1705500686633,-42379.0716605,0.00029,2]
[311922900,1705500686645,-5345.835905,0.00029,2]
[311922901,1705500686655,-220.0,0.00029,17]
[311922902,1705500686664,-300.0,0.00029,2]
[311922903,1705500686674,-166.87976454,0.00029059,2]
[311922904,1705500686685,-455.16,0.00029063,2]
[311922905,1705500686694,-150.0,0.00029072,2]
[311922906,1705500686703,-170.0,0.00029123,7]
[311922907,1705500686715,-150.0,0.00029123,7]
[311922908,1705500686724,-323.03839,0.00029133,2]
[311922909,1705500686734,-290.852659,0.00029133,2]
[311922910,1705500686744,-857.925667,0.00029133,2]
[311922911,1705500686753,-183.515107,0.00029133,2]
[311922912,1705500686762,-479.496,0.00029133,2]
[311922913,1705500686771,-234.769108,0.00029133,2]
[311922914,1705500686781,-806.83902,0.00029133,2]
[311922915,1705500686790,-182.472388,0.00029133,2]
[311922916,1705500686799,-216.852877,0.00029133,2]
[311922917,1705500686808,-195.056598,0.00029133,2]
[311922918,1705500686818,-500.0,0.00029135,2]
[311922919,1705500686828,-150.0,0.00029139,2]
[311922920,1705500686838,-260.43949329,0.00029189,4]
[311922921,1705500686850,-184.94676251,0.00029189,5]
[311922922,1705500686861,-256.28136948,0.00029189,5]
[311922923,1705500686871,-1000.0,0.00029189,7]
[311922924,1705500686882,-9661.68478522,0.00029189,5]
[311922925,1705500686892,-3076.50263755,0.00029189,7]
[311922926,1705500686901,-13658.87111178,0.00029189,5]
[311922927,1705500686910,-1000.0,0.00029189,7]
[311922928,1705500686919,-1000.0,0.00029189,7]
[311922929,1705500686929,-191.34937746,0.00029189,5]
[311922930,1705500686938,-1490.21344386,0.00029189,5]
[311922931,1705500686947,-486.39493501,0.00029189,5]
[311922932,1705500686957,-281.54728645,0.00029189,3]
[311922933,1705500686966,-1000.0,0.00029189,7]
[311922934,1705500686975,-885.81017358,0.00029189,5]
[311922935,1705500686985,-1467.12969963,0.00029189,5]
[311922936,1705500686994,-1000.0,0.00029189,7]
[311922937,1705500687004,-1789.21565939,0.00029189,5]
[311922938,1705500687014,-2452.59046605,0.00029189,5]
[311922939,1705500687024,-674.46237817,0.00029189,5]
[311922940,1705500687034,-1059.47699476,0.00029189,5]
[311922941,1705500687043,-12685.67320866,0.00029203,2]
[311922942,1705500687054,-166.87976454,0.00029253,2]
[311922943,1705500687064,-150.0,0.00029319,2]
[311922944,1705500687074,-150.0,0.00029321,2]
[311922945,1705500687083,-1500.0,0.00029321,2]
[311922946,1705500687093,-151.0,0.00029321,30]
[311922947,1705500687102,-170.0,0.0002937,7]
[311922948,1705500687112,-150.0,0.00029371,2]
[311922949,1705500687121,-150.0,0.00029383,2]
[311922950,1705500687130,-1127.19917904,0.000294,2]
[311922951,1705500687140,-1034.54514735,0.000294,2]
[311922952,1705500687149,-166.87976454,0.00029448,2]
[311922953,1705500687158,-500.0,0.00029489,2]
[311922954,1705500687168,-323.03839,0.00029497,2]
[311922955,1705500687177,-290.852659,0.00029497,2]
[311922956,1705500687187,-857.925667,0.00029497,2]
[311922957,1705500687197,-479.496,0.00029497,2]
[311922958,1705500687207,-234.769108,0.00029497,2]
[311922959,1705500687218,-806.83902,0.00029497,2]
[311922960,1705500687228,-221.11221235,0.000295,3]
[311922961,1705500687238,-220.0,0.000295,18]
[311922962,1705500687247,-7425.22815518,0.0002954,7]
[311922963,1705500687257,-5505.84532943,0.0002954,7]
[311922964,1705500687268,-150.0,0.00029548,2]
[311922965,1705500687279,-1500.0,0.00029571,2]
[311922966,1705500687288,-170.0,0.00029616,7]
[311922967,1705500687298,-166.87976454,0.00029643,2]
[311922968,1705500687308,-150.0,0.00029649,2]
[311922969,1705500687318,-150.0,0.00029664,2]
[311922970,1705500687328,-150.0,0.00029694,2]
[311922971,1705500687337,-150.0,0.0002971,2]
[311922972,1705500687348,-150.0,0.00029722,2]
[311922973,1705500687358,-175.46672634,0.000298,2]
[311922974,1705500687368,-150.0,0.00029802,2]
[311922975,1705500687377,-4513.42991496,0.00029821,7]
[311922976,1705500687386,-166.87976454,0.00029837,2]
[311922977,1705500687396,-2273.0,0.00029845,2]
[311922978,1705500687405,-19701.0,0.00029845,2]
[311922979,1705500687415,-1406.726,0.00029845,2]
[311922980,1705500687424,-186.174,0.00029845,2]
[311922981,1705500687433,-294.3527193,0.00029848,2]
[311922982,1705500687442,-323.03839,0.00029861,2]
[311922983,1705500687451,-290.852659,0.00029861,2]
[311922984,1705500687461,-857.925667,0.00029861,2]
[311922985,1705500687473,-183.515107,0.00029861,2]
[311922986,1705500687482,-479.496,0.00029861,2]
[311922987,1705500687492,-234.769108,0.00029861,2]
[311922988,1705500687501,-806.83902,0.00029861,2]
[311922989,1705500687510,-150.0,0.00029862,2]
[311922990,1705500687519,-150.0,0.00029903,2]
[311922991,1705500687529,-150.0,0.00029917,2]
[311922992,1705500687538,-151.0,0.0002992,7]
[311922993,1705500687578,-67442.74574546,0.0002998,2]
[311922994,1705500687587,-150.0,0.0002999,2]
[311922995,1705500687596,-150.0,0.00029998,2]
[311922996,1705500687605,-100000.0,0.0003,2]
[311922997,1705500687615,-583.71376926,0.0003,2]
[311922998,1705500687624,-9656.46523311,0.0003,2]
[311922999,1705500687636,-38098.76820008,0.0003,4]
[311923000,1705500687645,-1968.91329711,0.0003,2]
[311923001,1705500687655,-763.42785941,0.0003,4]
[311923002,1705500687664,-3089.72849143,0.0003,4]
[311923003,1705500687674,-660.42500208,0.0003,2]
[311923004,1705500687684,-283.17511141,0.0003,2]
[311923005,1705500687693,-770.58135396,0.0003,2]
[311923006,1705500687702,-155.0,0.0003,2]
[311923007,1705500687715,-1284.97976669,0.0003,5]
[311923008,1705500687724,-9031.369439,0.0003,3]
[311923009,1705500687734,-10609.77,0.0003,2]
[311923010,1705500687743,-1145.20253344,0.0003,3]
[311923011,1705500687754,-2500.0,0.0003,2]
[311923012,1705500687763,-1578.29176226,0.0003,2]
[311923013,1705500687773,-1200.0,0.0003,20]
[311923014,1705500687782,-15334.0,0.0003,30]
[311923015,1705500687792,-200.0,0.0003,7]
[311923016,1705500687802,-200.0,0.0003,7]
[311923017,1705500687811,-200.0,0.0003,7]
[311923018,1705500687821,-200.0,0.0003,7]
[311923019,1705500687830,-779.454472,0.0003,2]
[311923020,1705500687840,-1887.12518063,0.0003,2]
[311923021,1705500687849,-152.70971941,0.0003,11]
[311923022,1705500687860,-152.70971941,0.0003,12]
[311923023,1705500687869,-157.89,0.0003,2]
[311923024,1705500687879,-157.89,0.0003,2]
[311923025,1705500687888,-220.0,0.0003,18]
[311923026,1705500687898,-152.67,0.0003,2]
[311923027,1705500687907,-152.67,0.0003,2]
[311923028,1705500687917,-152.67,0.0003,2]
[311923029,1705500687926,-152.67,0.0003,2]
[311923030,1705500687936,-152.67,0.0003,2]
[311923031,1705500687945,-152.67,0.0003,2]
[311923032,1705500687955,-152.67,0.0003,2]
[311923033,1705500687966,-152.67,0.0003,2]
[311923034,1705500687976,-500.0,0.0003,3]
[311923035,1705500687985,-200.0,0.0003,2]
[311923036,1705500687995,-3000.0,0.0003,2]
[311923037,1705500688005,-3000.0,0.0003,2]
[311923038,1705500688015,-3000.0,0.0003,2]
[311923039,1705500688025,-3000.0,0.0003,2]
[311923040,1705500688035,-3000.0,0.0003,2]
[311923041,1705500688044,-3000.0,0.0003,2]
[311923042,1705500688054,-300.0,0.0003,2]
[311923043,1705500688063,-1000.0,0.0003,2]
[311923044,1705500688073,-203.0,0.0003,2]
[311923045,1705500688083,-200.0,0.0003,7]
[311923046,1705500688094,-200.0,0.0003,7]
[311923047,1705500688104,-25934.98226319,0.00030028,7]
[311923048,1705500688113,-38521.70980115,0.00030028,7]
[311923049,1705500688124,-166.87976454,0.00030032,2]
[311923050,1705500688134,-1000.0,0.000301,2]
[311923051,1705500688144,-1000.0,0.000301,2]
[311923052,1705500688154,-153.84,0.00030137,2]
[311923053,1705500688163,-2248.31,0.00030137,7]
[311923054,1705500688173,-155.0,0.00030137,2]
[311923055,1705500688185,-1850.0,0.000302,2]
[311923056,1705500688196,-3287.21612338,0.00030223,2]
[311923057,1705500688206,-323.03839,0.00030225,2]
[311923058,1705500688216,-290.852659,0.00030225,2]
[311923059,1705500688227,-857.925667,0.00030225,2]
[311923060,1705500688237,-479.496,0.00030225,2]
[311923061,1705500688247,-234.769108,0.00030225,2]
[311923062,1705500688259,-806.83902,0.00030225,2]
[311923063,1705500688269,-166.87976454,0.00030227,2]
[311923064,1705500688279,-22843.20421128,0.00030255,7]
[311923065,1705500688289,-152.03062597,0.00030299,2]
[311923066,1705500688299,-150.64899738,0.00030299,2]
[311923067,1705500688311,-156.0929326,0.00030368,7]
[311923068,1705500688320,-156.0929326,0.00030375,7]
[311923069,1705500688330,-166.87976454,0.00030421,2]
[311923070,1705500688339,-220.0,0.000305,19]
[311923071,1705500688348,-946.0,0.00030522,2]
[311923072,1705500688358,-214.0,0.00030522,2]
[311923073,1705500688368,-310.542,0.00030522,2]
[311923074,1705500688378,-702.0,0.00030522,2]
[311923075,1705500688388,-996.0,0.00030522,2]
[311923076,1705500688397,-426.0,0.00030522,2]
[311923077,1705500688407,-316.0,0.00030522,2]
[311923078,1705500688417,-235.0,0.00030522,2]
[311923079,1705500688428,-151.0,0.0003053,4]
[311923080,1705500688440,-323.03839,0.00030589,2]
[311923081,1705500688450,-290.852659,0.00030589,2]
[311923082,1705500688460,-857.925667,0.00030589,2]
[311923083,1705500688471,-183.515107,0.00030589,2]
[311923084,1705500688481,-479.496,0.00030589,2]
[311923085,1705500688490,-234.769108,0.00030589,2]
[311923086,1705500688500,-806.83902,0.00030589,2]
[311923087,1705500688510,-166.87976454,0.00030616,2]
[311923088,1705500688519,-12685.67320866,0.00030616,2]
[311923089,1705500688529,-28630.74,0.0003062,2]
[311923090,1705500688539,-275.0732239,0.00030688,7]
[311923091,1705500688548,-166.87976454,0.00030811,2]
[311923092,1705500688557,-17753.68093842,0.00030882,2]
[311923093,1705500688567,-1427044.54391675,0.00030885,2]
[311923094,1705500688576,-100000.0,0.00031,2]
[311923095,1705500688586,-269.0,0.00031,120]
[311923096,1705500688595,-76089.93,0.00031,2]
[311923097,1705500688605,-500.0,0.00031,3]
[311923098,1705500688614,-28384.97117018,0.00031,2]
[311923099,1705500688624,-220.0,0.00031,19]
[311923100,1705500688644,-500.0,0.00031,3]
[311923101,1705500688653,-300.0,0.00031,3]
[311923102,1705500688663,-166.87976454,0.00031006,2]
[311923103,1705500688673,-153.84,0.0003105,2]
[311923104,1705500688683,-208.0,0.00031086,10]
[311923105,1705500688693,-151.0,0.00031153,2]
[311923106,1705500688702,-157.89,0.000312,2]
[311923107,1705500688712,-157.89,0.000312,2]
[311923108,1705500688724,-157.89,0.000312,2]
[311923109,1705500688734,-157.89,0.000312,2]
[311923110,1705500688743,-152.67,0.000312,2]
[311923111,1705500688753,-152.67,0.000312,2]
[311923112,1705500688762,-152.67,0.000312,2]
[311923113,1705500688775,-152.67,0.000312,2]
[311923114,1705500688784,-152.67,0.000312,2]
[311923115,1705500688794,-152.67,0.000312,2]
[311923116,1705500688803,-152.67,0.000312,2]
[311923117,1705500688813,-152.67,0.000312,2]
[311923118,1705500688823,-152.67,0.000312,2]
[311923119,1705500688832,-152.67,0.000312,2]
[311923120,1705500688842,-152.67,0.000312,2]
[311923121,1705500688851,-152.67,0.000312,2]
[311923122,1705500688861,-152.67,0.000312,2]
[311923123,1705500688871,-152.67,0.000312,2]
[311923124,1705500688880,-152.67,0.000312,2]
[311923125,1705500688889,-152.67,0.000312,2]
[311923126,1705500688899,-166.87976454,0.000312,2]
[311923127,1705500688910,-150.0,0.00031244,2]
[311923128,1705500688919,-156.0929326,0.00031323,7]
[311923129,1705500688929,-455.16,0.00031327,2]
[311923130,1705500688939,-156.0929326,0.00031364,7]
[311923131,1705500688950,-166.87976454,0.00031395,2]
[311923132,1705500688960,-179.0,0.000314,2]
[311923133,1705500688971,-5000.0,0.00031473,2]
[311923134,1705500688982,-4906.0063682,0.00031476,2]
[311923135,1705500688991,-500.0,0.000315,2]
[311923136,1705500689002,-220.0,0.000315,20]
[311923137,1705500689013,-675.95,0.00031507,2]
[311923138,1705500689023,-155.0,0.00031507,2]
[311923139,1705500689033,-166.87976454,0.0003159,2]
[311923140,1705500689042,-156.0929326,0.00031605,7]
[311923141,1705500689054,-170.62,0.00031644,2]
[311923142,1705500689064,-1000.0,0.00031727,7]
[311923143,1705500689074,-1000.0,0.00031727,7]
[311923144,1705500689085,-1000.0,0.00031727,7]
[311923145,1705500689096,-150.0,0.00031776,2]
[311923146,1705500689106,-150.0,0.00031776,2]
[311923147,1705500689116,-150.0,0.00031776,2]
[311923148,1705500689125,-300.0,0.00031776,2]
[311923149,1705500689135,-150.0,0.00031776,2]
[311923150,1705500689145,-3053.8898007,0.00031778,2]
[311923151,1705500689154,-68506.4529097,0.00031778,2]
[311923152,1705500689165,-602.4251554,0.00031778,2]
[311923153,1705500689175,-166.87976454,0.00031784,2]
[311923154,1705500689186,-2000.0,0.00031855,2]
[311923155,1705500689198,-1142.31586887,0.0003189,2]
[311923156,1705500689208,-152.0,0.00031894,3]
[311923157,1705500689218,-1000.0,0.00031938,7]
[311923158,1705500689228,-1000.0,0.00031938,7]
[311923159,1705500689239,-1000.0,0.00031938,7]
[311923160,1705500689250,-1000.0,0.00031938,7]
[311923161,1705500689260,-1000.0,0.00031938,7]
[311923162,1705500689270,-1000.0,0.00031938,7]
[311923163,1705500689280,-153.84,0.00031963,2]
[311923164,1705500689290,-166.87976454,0.00031979,2]
[311923165,1705500689300,-100000.0,0.00032,3]
[311923166,1705500689310,-30293.43375952,0.00032,2]
[311923167,1705500689320,-531.15573107,0.00032,4]
[311923168,1705500689329,-485.53201373,0.00032,4]
[311923169,1705500689338,-2105.58,0.00032,4]
[311923170,1705500689348,-2017.86,0.00032,2]
[311923171,1705500689358,-481.8790083,0.00032,6]
[311923172,1705500689367,-12500.0,0.00032,2]
[311923173,1705500689378,-2000.0,0.00032,2]
[311923174,1705500689387,-164.0,0.00032,2]
[311923175,1705500689397,-164.0,0.00032,2]
[311923176,1705500689406,-220.0,0.00032,20]
[311923177,1705500689416,-500.0,0.00032,3]
[311923178,1705500689426,-693.89059852,0.00032,2]
[311923179,1705500689435,-13538.87,0.00032,2]
[311923180,1705500689444,-300.0,0.00032,5]
[311923181,1705500689454,-12685.67320866,0.00032029,3]
[311923182,1705500689464,-12500.0,0.00032038,2]
[311923183,1705500689473,-150.0,0.00032046,2]
[311923184,1705500689483,-207.0,0.0003206,2]
[311923185,1705500689492,-12500.0,0.00032075,2]
[311923186,1705500689501,-167.08934384,0.00032086,7]
[311923187,1705500689511,-12500.0,0.00032113,2]
[311923188,1705500689521,-12500.0,0.0003215,2]
[311923189,1705500689531,-166.87976454,0.00032174,2]
[311923190,1705500689541,-156.0929326,0.00032177,7]
[311923191,1705500689550,-12500.0,0.00032188,2]
[311923192,1705500689560,-12500.0,0.00032225,2]
[311923193,1705500689570,-12500.0,0.00032263,2]
[311923194,1705500689580,-12500.0,0.000323,2]
[311923195,1705500689590,-150.64899738,0.00032303,2]
[311923196,1705500689600,-156.0929326,0.00032329,7]
[311923197,1705500689610,-12500.0,0.00032338,2]
[311923198,1705500689620,-166.87976454,0.00032368,2]
[311923199,1705500689630,-12500.0,0.00032375,2]
[311923200,1705500689645,-157.89,0.000324,2]
[311923201,1705500689655,-157.89,0.000324,2]
[311923202,1705500689665,-157.89,0.000324,2]
[311923203,1705500689676,-157.89,0.000324,2]
[311923204,1705500689685,-152.67,0.000324,2]
[311923205,1705500689695,-152.67,0.000324,2]
[311923206,1705500689705,-152.67,0.000324,2]
[311923207,1705500689717,-152.67,0.000324,2]
[311923208,1705500689727,-152.67,0.000324,2]
[311923209,1705500689737,-152.67,0.000324,2]
[311923210,1705500689746,-152.67,0.000324,2]
[311923211,1705500689756,-152.67,0.000324,2]
[311923212,1705500689765,-152.67,0.000324,2]
[311923213,1705500689775,-152.67,0.000324,2]
[311923214,1705500689786,-152.67,0.000324,2]
[311923215,1705500689796,-152.67,0.000324,2]
[311923216,1705500689806,-152.67,0.000324,2]
[311923217,1705500689816,-152.67,0.000324,2]
[311923218,1705500689826,-152.67,0.000324,2]
[311923219,1705500689837,-152.67,0.000324,2]
[311923220,1705500689847,-12500.0,0.00032413,2]
[311923221,1705500689857,-12500.0,0.0003245,2]
[311923222,1705500689867,-12500.0,0.00032488,2]
[311923223,1705500689877,-2000.0,0.000325,4]
[311923224,1705500689887,-179.0,0.000325,2]
[311923225,1705500689897,-250.0,0.000325,5]
[311923226,1705500689907,-250.0,0.000325,5]
[311923227,1705500689919,-220.0,0.000325,21]
[311923228,1705500689929,-12500.0,0.00032525,2]
[311923229,1705500689939,-6844.77519123,0.00032547,2]
[311923230,1705500689949,-12500.0,0.00032563,2]
[311923231,1705500689960,-166.87976454,0.00032563,2]
[311923232,1705500689972,-156.0929326,0.0003258,7]
[311923233,1705500689982,-12500.0,0.000326,2]
[311923234,1705500689993,-941.06,0.00032636,2]
[311923235,1705500690003,-941.06,0.00032636,2]
[311923236,1705500690014,-941.06,0.00032636,2]
[311923237,1705500690192,-559.82,0.00032636,2]
[311923238,1705500690203,-12500.0,0.00032638,2]
[311923239,1705500690214,-12500.0,0.00032675,2]
[311923240,1705500690227,-1000.0,0.000327,7]
[311923241,1705500690238,-1000.0,0.000327,7]
[311923242,1705500690250,-12500.0,0.00032713,2]
[311923243,1705500690260,-156.0929326,0.00032723,7]
[311923244,1705500690271,-5000.0,0.00032724,4]
[311923245,1705500690282,-12500.0,0.0003275,2]
[311923246,1705500690291,-166.87976454,0.00032758,2]
[311923247,1705500690301,-156.0929326,0.00032776,7]
[311923248,1705500690310,-155.0,0.00032779,7]